[Event "*** MasterClass Titled Tuesday Blitz"]
[Site "Chess.com"]
[Date "2017.11.07"]
[Round "2"]
[White "ArnaudovP"]
[Black "GameOverBro"]
[Result "0-1"]
[WhiteElo "2482"]
[BlackElo "2315"]
[TimeControl "180+2"]
[EndTime "14:28:09 PST"]
[Termination "GameOverBro won by resignation"]

1. d4 {[%clk 0:03:01.9]} 1... d6 {[%clk 0:03:00.8]} 2. Nf3 {[%clk 0:03:01.8]}
2... Nf6 {[%clk 0:03:02.2]} 3. c4 {[%clk 0:03:02.6]} 3... Nbd7 {[%clk 0:03:03]}
4. Nc3 {[%clk 0:03:04]} 4... e5 {[%clk 0:03:04]} 5. Bg5 {[%clk 0:03:05.5]} 5...
Be7 {[%clk 0:03:04.8]} 6. Qc2 {[%clk 0:03:06.3]} 6... O-O {[%clk 0:03:05.6]} 7.
O-O-O {[%clk 0:03:06.8]} 7... exd4 {[%clk 0:03:02.4]} 8. Nxd4 {[%clk 0:03:07.3]}
8... Nc5 {[%clk 0:03:02.2]} 9. e3 {[%clk 0:03:07.4]} 9... h6 {[%clk 0:03:01.6]}
10. Bh4 {[%clk 0:03:07.9]} 10... a5 {[%clk 0:02:54.4]} 11. h3 {[%clk 0:03:04.6]}
11... Re8 {[%clk 0:02:52.5]} 12. g4 {[%clk 0:03:04.9]} 12... Nh7 {[%clk
0:02:49.8]} 13. Bg3 {[%clk 0:03:05]} 13... c6 {[%clk 0:02:44.9]} 14. Nb3 {[%clk
0:02:58.9]} 14... Nxb3+ {[%clk 0:02:44.3]} 15. axb3 {[%clk 0:02:59.4]} 15... Be6
{[%clk 0:02:37.1]} 16. Bd3 {[%clk 0:02:57.5]} 16... Nf6 {[%clk 0:02:30.8]} 17.
f3 {[%clk 0:02:58.2]} 17... d5 {[%clk 0:02:28.8]} 18. h4 {[%clk 0:02:57.6]}
18... a4 {[%clk 0:02:21.8]} 19. bxa4 {[%clk 0:02:55.8]} 19... dxc4 {[%clk
0:02:20.9]} 20. Bh7+ {[%clk 0:02:50.2]} 20... Nxh7 {[%clk 0:02:21.9]} 21. Rxd8
{[%clk 0:02:51.1]} 21... Rexd8 {[%clk 0:02:23.8]} 22. g5 {[%clk 0:02:52.1]}
22... Rd3 {[%clk 0:02:08.4]} 23. Bf4 {[%clk 0:02:51.2]} 23... b5 {[%clk
0:02:02.4]} 24. gxh6 {[%clk 0:02:51.4]} 24... b4 {[%clk 0:02:03.3]} 25. Ne4
{[%clk 0:02:45.2]} 25... b3 {[%clk 0:01:58.1]} 26. Qg2 {[%clk 0:02:45.5]} 26...
g6 {[%clk 0:01:59.1]} 27. h5 {[%clk 0:02:38.4]} 27... Rxa4 {[%clk 0:01:59.8]}
28. Kb1 {[%clk 0:02:39.2]} 28... Bf5 {[%clk 0:01:47.9]} 29. hxg6 {[%clk
0:02:39.4]} 29... fxg6 {[%clk 0:01:48.3]} 30. Rc1 {[%clk 0:02:29.1]} 30... Rd8
{[%clk 0:01:42.1]} 31. Qe2 {[%clk 0:02:26]} 31... Rda8 {[%clk 0:01:40.7]} 32.
Qxc4+ {[%clk 0:02:22.6]} 32... Rxc4 {[%clk 0:01:41.4]} 33. Rxc4 {[%clk
0:02:24.1]} 33... Nf6 {[%clk 0:01:40.6]} 34. Kc1 {[%clk 0:02:22.7]} 34... Nxe4
{[%clk 0:01:23.2]} 35. fxe4 {[%clk 0:02:23]} 35... Bd7 {[%clk 0:01:17.8]} 36.
Rc3 {[%clk 0:02:16.6]} 36... Ra1+ {[%clk 0:01:13]} 37. Kd2 {[%clk 0:02:17.4]}
37... Bb4 {[%clk 0:01:14.5]} 38. Be5 {[%clk 0:02:13.1]} 38... Bg4 {[%clk
0:01:13.9]} 39. Kd3 {[%clk 0:02:13.5]} 39... Bxc3 {[%clk 0:01:01.2]} 40. Kxc3
{[%clk 0:02:14.3]} 40... Be6 {[%clk 0:00:58.8]} 41. Bf4 {[%clk 0:02:12.8]} 41...
Rc1+ {[%clk 0:00:54.7]} 42. Kb4 {[%clk 0:02:10.8]} 42... Rc2 {[%clk 0:00:56.1]}
43. Be5 {[%clk 0:02:11.2]} 43... c5+ {[%clk 0:00:54.9]} 44. Ka3 {[%clk
0:02:08.7]} 44... Kh7 {[%clk 0:00:55.4]} 45. Bg7 {[%clk 0:02:08.7]} 45... g5
{[%clk 0:00:56.6]} 46. Bf8 {[%clk 0:02:06.4]} 46... g4 {[%clk 0:00:56.7]} 47.
Bd6 {[%clk 0:02:07.9]} 47... Kxh6 {[%clk 0:00:55]} 48. Bf4+ {[%clk 0:02:09.8]}
0-1

[Event "*** MasterClass Titled Tuesday Blitz"]
[Site "Chess.com"]
[Date "2017.11.07"]
[Round "2"]
[White "gmcorrales"]
[Black "pedromartinez91"]
[Result "1-0"]
[WhiteElo "2679"]
[BlackElo "2327"]
[TimeControl "180+2"]
[EndTime "14:28:12 PST"]
[Termination "gmcorrales won on time"]

1. d4 {[%clk 0:02:59.5]} 1... d5 {[%clk 0:02:59.5]} 2. Nf3 {[%clk 0:02:58.6]}
2... Nf6 {[%clk 0:03:00.1]} 3. c4 {[%clk 0:02:56.1]} 3... e6 {[%clk 0:03:00.5]}
4. Nc3 {[%clk 0:02:55.9]} 4... Be7 {[%clk 0:03:01.2]} 5. Bg5 {[%clk 0:02:53.9]}
5... O-O {[%clk 0:03:00.1]} 6. cxd5 {[%clk 0:02:54.2]} 6... exd5 {[%clk
0:03:00.7]} 7. e3 {[%clk 0:02:54.4]} 7... c6 {[%clk 0:02:59.8]} 8. Bd3 {[%clk
0:02:55.3]} 8... Nbd7 {[%clk 0:03:00.3]} 9. O-O {[%clk 0:02:56.3]} 9... Re8
{[%clk 0:03:01.3]} 10. Rb1 {[%clk 0:02:57]} 10... Ne4 {[%clk 0:02:35.1]} 11.
Bxe4 {[%clk 0:02:39.3]} 11... Bxg5 {[%clk 0:02:23.9]} 12. Bd3 {[%clk 0:02:39.5]}
12... Be7 {[%clk 0:02:24.2]} 13. b4 {[%clk 0:02:39]} 13... a6 {[%clk 0:02:25.6]}
14. a4 {[%clk 0:02:39.7]} 14... Bd6 {[%clk 0:02:22.6]} 15. b5 {[%clk 0:02:36.6]}
15... axb5 {[%clk 0:02:22.8]} 16. axb5 {[%clk 0:02:38.5]} 16... Ra3 {[%clk
0:02:23.9]} 17. Rb3 {[%clk 0:02:35.3]} 17... Qa5 {[%clk 0:02:13.1]} 18. Rxa3
{[%clk 0:02:31.2]} 18... Qxa3 {[%clk 0:02:13.7]} 19. Qc2 {[%clk 0:02:31.3]}
19... Nf6 {[%clk 0:02:06.7]} 20. Nb1 {[%clk 0:02:28.7]} 20... Qa8 {[%clk
0:01:59.5]} 21. bxc6 {[%clk 0:02:27.8]} 21... bxc6 {[%clk 0:02:00.4]} 22. Rc1
{[%clk 0:02:28.2]} 22... Bd7 {[%clk 0:01:56.9]} 23. Nbd2 {[%clk 0:02:28.4]}
23... g6 {[%clk 0:01:31.2]} 24. h3 {[%clk 0:02:27.5]} 24... Qa3 {[%clk
0:01:25.5]} 25. Nb3 {[%clk 0:02:28.3]} 25... Rb8 {[%clk 0:01:26.2]} 26. Nc5
{[%clk 0:02:29.1]} 26... Rb2 {[%clk 0:01:24]} 27. Qc3 {[%clk 0:02:18.4]} 27...
Bxc5 {[%clk 0:01:15.3]} 28. Qxc5 {[%clk 0:02:18.8]} 28... Qxd3 {[%clk
0:01:10.5]} 29. Qe7 {[%clk 0:02:15.2]} 29... Rb1 {[%clk 0:01:04]} 30. Ne5 {[%clk
0:01:45.1]} 30... Rxc1+ {[%clk 0:00:48.2]} 31. Kh2 {[%clk 0:01:46.2]} 31... Rh1+
{[%clk 0:00:21.7]} 32. Kxh1 {[%clk 0:01:46.8]} 32... Qf1+ {[%clk 0:00:15.6]} 33.
Kh2 {[%clk 0:01:46.9]} 1-0

[Event "*** MasterClass Titled Tuesday Blitz"]
[Site "Chess.com"]
[Date "2017.11.07"]
[Round "2"]
[White "krzyzan94"]
[Black "Lunaticx"]
[Result "1-0"]
[WhiteElo "2578"]
[BlackElo "2682"]
[TimeControl "180+2"]
[EndTime "14:28:34 PST"]
[Termination "krzyzan94 won by resignation"]

1. e4 {[%clk 0:03:01.9]} 1... c6 {[%clk 0:02:59]} 2. d4 {[%clk 0:03:02.6]} 2...
d5 {[%clk 0:03:00.9]} 3. Nc3 {[%clk 0:03:02.6]} 3... dxe4 {[%clk 0:03:01.7]} 4.
Nxe4 {[%clk 0:03:04.4]} 4... Bf5 {[%clk 0:03:03.3]} 5. Ng3 {[%clk 0:03:05.6]}
5... Bg6 {[%clk 0:03:04.8]} 6. h4 {[%clk 0:03:06.9]} 6... h6 {[%clk 0:03:05.8]}
7. N1e2 {[%clk 0:03:08.2]} 7... Nf6 {[%clk 0:03:02.6]} 8. Nf4 {[%clk 0:03:06.3]}
8... Bh7 {[%clk 0:03:03.8]} 9. Bc4 {[%clk 0:03:07.9]} 9... e6 {[%clk 0:03:02.2]}
10. c3 {[%clk 0:03:09.2]} 10... Bd6 {[%clk 0:03:02.2]} 11. Nfh5 {[%clk
0:03:04.1]} 11... Bxg3 {[%clk 0:02:47.1]} 12. Nxg3 {[%clk 0:02:49.3]} 12... Nbd7
{[%clk 0:02:39.6]} 13. Qf3 {[%clk 0:02:35.6]} 13... O-O {[%clk 0:02:34.6]} 14.
O-O {[%clk 0:02:33.4]} 14... Nb6 {[%clk 0:02:28.6]} 15. Bb3 {[%clk 0:02:28]}
15... a5 {[%clk 0:02:29]} 16. a4 {[%clk 0:02:23.3]} 16... Nbd5 {[%clk
0:02:27.5]} 17. Re1 {[%clk 0:02:18]} 17... Qb6 {[%clk 0:02:26.4]} 18. Bc4 {[%clk
0:02:19.4]} 18... Rad8 {[%clk 0:02:23.1]} 19. b3 {[%clk 0:02:09.9]} 19... Rfe8
{[%clk 0:02:17.5]} 20. Ba3 {[%clk 0:02:11]} 20... Qc7 {[%clk 0:02:17.7]} 21. Re5
{[%clk 0:02:02.4]} 21... Rb8 {[%clk 0:02:07.9]} 22. Nh5 {[%clk 0:01:56.4]} 22...
Nxh5 {[%clk 0:02:01.4]} 23. Qxh5 {[%clk 0:01:58.3]} 23... Nxc3 {[%clk
0:01:52.1]} 24. Rae1 {[%clk 0:01:54.5]} 24... b5 {[%clk 0:01:49.9]} 25. axb5
{[%clk 0:01:55.1]} 25... cxb5 {[%clk 0:01:50.6]} 26. Rc5 {[%clk 0:01:49.9]}
26... Qd7 {[%clk 0:01:45.2]} 27. Bf1 {[%clk 0:01:24.8]} 27... Nd5 {[%clk
0:01:40.7]} 28. Qg4 {[%clk 0:01:17.4]} 28... Red8 {[%clk 0:01:34.4]} 29. Bc1
{[%clk 0:01:18.3]} 29... Nf6 {[%clk 0:01:32.6]} 30. Qg3 {[%clk 0:01:09.6]} 30...
Ne4 {[%clk 0:01:31.6]} 31. Rxe4 {[%clk 0:01:10.2]} 31... Bxe4 {[%clk 0:01:33.2]}
32. Bxh6 {[%clk 0:01:11.8]} 32... f6 {[%clk 0:01:30.1]} 33. Rc7 {[%clk
0:01:12.2]} 33... Qxc7 {[%clk 0:01:25.8]} 34. Qxc7 {[%clk 0:01:12.5]} 34... gxh6
{[%clk 0:01:27.4]} 35. Qe7 {[%clk 0:01:09.2]} 35... Re8 {[%clk 0:01:10.2]} 36.
Qxf6 {[%clk 0:01:09.9]} 36... Rb7 {[%clk 0:01:04.6]} 37. f3 {[%clk 0:01:07.2]}
37... Bd5 {[%clk 0:00:58.1]} 38. Qg6+ {[%clk 0:01:07.1]} 38... Kf8 {[%clk
0:00:58.8]} 39. Qxh6+ {[%clk 0:01:08.4]} 39... Rg7 {[%clk 0:00:59.2]} 40. Bxb5
{[%clk 0:01:07]} 40... Rb8 {[%clk 0:00:56.3]} 41. Qf4+ {[%clk 0:01:07.8]} 1-0

[Event "*** MasterClass Titled Tuesday Blitz"]
[Site "Chess.com"]
[Date "2017.11.07"]
[Round "2"]
[White "lukas_111111"]
[Black "Maitreia"]
[Result "1-0"]
[WhiteElo "2355"]
[BlackElo "2475"]
[TimeControl "180+2"]
[EndTime "14:28:53 PST"]
[Termination "lukas_111111 won by resignation"]

1. d4 {[%clk 0:03:01.8]} 1... Nf6 {[%clk 0:02:59.5]} 2. c4 {[%clk 0:03:02.4]}
2... g6 {[%clk 0:03:00.8]} 3. Nf3 {[%clk 0:03:02.1]} 3... Bg7 {[%clk 0:03:02.2]}
4. g3 {[%clk 0:03:03.7]} 4... O-O {[%clk 0:03:04.1]} 5. Bg2 {[%clk 0:03:05.2]}
5... Nc6 {[%clk 0:03:05.4]} 6. O-O {[%clk 0:03:05.2]} 6... d6 {[%clk 0:03:05.3]}
7. Nc3 {[%clk 0:03:04.8]} 7... Rb8 {[%clk 0:03:06.6]} 8. Qc2 {[%clk 0:03:04.8]}
8... a6 {[%clk 0:03:03.3]} 9. Rd1 {[%clk 0:03:05.3]} 9... Bf5 {[%clk 0:02:59.2]}
10. e4 {[%clk 0:03:01.9]} 10... Bg4 {[%clk 0:03:00]} 11. Ne2 {[%clk 0:02:30.6]}
11... Nd7 {[%clk 0:02:54.6]} 12. Be3 {[%clk 0:02:21.7]} 12... e6 {[%clk
0:02:44.3]} 13. h3 {[%clk 0:02:21.4]} 13... Bxf3 {[%clk 0:02:45]} 14. Bxf3
{[%clk 0:02:22.6]} 14... Ne7 {[%clk 0:02:44.9]} 15. Bg2 {[%clk 0:02:23.4]} 15...
Qc8 {[%clk 0:02:42]} 16. b4 {[%clk 0:02:20.8]} 16... b5 {[%clk 0:02:27.7]} 17.
cxb5 {[%clk 0:02:09.9]} 17... axb5 {[%clk 0:02:29.6]} 18. Rac1 {[%clk
0:02:08.9]} 18... c6 {[%clk 0:02:29.7]} 19. Bf4 {[%clk 0:02:05]} 19... e5 {[%clk
0:02:04]} 20. dxe5 {[%clk 0:02:05.2]} 20... dxe5 {[%clk 0:02:03.2]} 21. Bg5
{[%clk 0:02:05.2]} 21... Nf6 {[%clk 0:02:00.6]} 22. Rd6 {[%clk 0:01:59.2]} 22...
Rd8 {[%clk 0:01:18.3]} 23. Bxf6 {[%clk 0:01:42.4]} 23... Bxf6 {[%clk 0:01:00.3]}
24. Rxf6 {[%clk 0:01:42.6]} 24... Kg7 {[%clk 0:01:00.9]} 25. Rf3 {[%clk
0:01:42.5]} 25... Qe6 {[%clk 0:00:53.7]} 26. Qb3 {[%clk 0:01:40.1]} 26... Qxb3
{[%clk 0:00:45.3]} 27. Rxb3 {[%clk 0:01:39.1]} 27... Rd2 {[%clk 0:00:47.2]} 28.
Nc3 {[%clk 0:01:31]} 28... Rbd8 {[%clk 0:00:46.7]} 29. a4 {[%clk 0:01:29.2]}
29... bxa4 {[%clk 0:00:46.2]} 30. Nxa4 {[%clk 0:01:30.3]} 30... h5 {[%clk
0:00:39]} 31. Nc5 {[%clk 0:01:28.9]} 31... Ra2 {[%clk 0:00:37.2]} 32. Rd3 {[%clk
0:01:27.2]} 32... Rb8 {[%clk 0:00:34.7]} 33. Rd7 {[%clk 0:01:28.2]} 33... Kf6
{[%clk 0:00:29.2]} 34. Rcd1 {[%clk 0:01:28.5]} 34... Ng8 {[%clk 0:00:19.2]} 35.
R1d6+ {[%clk 0:01:20.3]} 35... Kg7 {[%clk 0:00:19.8]} 36. Ne6+ {[%clk 0:01:21]}
36... Kh7 {[%clk 0:00:20]} 37. Rxf7+ {[%clk 0:01:21.6]} 37... Kh6 {[%clk
0:00:20.7]} 38. Nf8 {[%clk 0:01:21.3]} 38... h4 {[%clk 0:00:14.9]} 39. Rxg6+
{[%clk 0:01:21.3]} 1-0

[Event "*** MasterClass Titled Tuesday Blitz"]
[Site "Chess.com"]
[Date "2017.11.07"]
[Round "2"]
[White "temiksmozg"]
[Black "Swarnapuri"]
[Result "0-1"]
[WhiteElo "2443"]
[BlackElo "2478"]
[TimeControl "180+2"]
[EndTime "14:28:59 PST"]
[Termination "Swarnapuri won by resignation"]

1. d4 {[%clk 0:03:01.7]} 1... Nc6 {[%clk 0:03:01.9]} 2. d5 {[%clk 0:03:00.2]}
2... Ne5 {[%clk 0:03:02.6]} 3. e4 {[%clk 0:03:01.5]} 3... Ng6 {[%clk 0:03:03.7]}
4. f4 {[%clk 0:03:02]} 4... e5 {[%clk 0:03:04.7]} 5. dxe6 {[%clk 0:03:02.5]}
5... dxe6 {[%clk 0:03:05]} 6. Qxd8+ {[%clk 0:03:02.1]} 6... Kxd8 {[%clk
0:03:06.9]} 7. Nf3 {[%clk 0:03:00]} 7... Nf6 {[%clk 0:03:05.3]} 8. Bd3 {[%clk
0:02:59.9]} 8... Bc5 {[%clk 0:02:57.6]} 9. Ke2 {[%clk 0:02:57.2]} 9... b6 {[%clk
0:02:50.4]} 10. Nc3 {[%clk 0:02:54.4]} 10... Bb7 {[%clk 0:02:49.4]} 11. a3
{[%clk 0:02:21.2]} 11... a5 {[%clk 0:02:34.2]} 12. g3 {[%clk 0:02:21.1]} 12...
Ke7 {[%clk 0:02:27.4]} 13. e5 {[%clk 0:02:21.9]} 13... Nd5 {[%clk 0:02:17.9]}
14. Ne4 {[%clk 0:02:22.9]} 14... f5 {[%clk 0:02:14.1]} 15. Nxc5 {[%clk 0:01:58]}
15... bxc5 {[%clk 0:02:14.8]} 16. c4 {[%clk 0:01:59.9]} 16... Nb6 {[%clk
0:02:12.2]} 17. a4 {[%clk 0:01:47.2]} 17... Rhd8 {[%clk 0:02:12]} 18. Rd1 {[%clk
0:01:48.4]} 18... Nxc4 {[%clk 0:02:07.1]} 19. b3 {[%clk 0:01:45.6]} 19... Nb6
{[%clk 0:01:47.7]} 20. Ba3 {[%clk 0:01:46.8]} 20... Nd5 {[%clk 0:01:40.2]} 21.
Bxc5+ {[%clk 0:01:38.8]} 21... Ke8 {[%clk 0:01:41.3]} 22. Bc4 {[%clk 0:01:36.1]}
22... Nc3+ {[%clk 0:01:40]} 23. Ke1 {[%clk 0:01:21.8]} 23... Bxf3 {[%clk
0:01:32.6]} 24. Rxd8+ {[%clk 0:01:19]} 24... Rxd8 {[%clk 0:01:33.8]} 25. Bxe6
{[%clk 0:01:16.9]} 25... Be4 {[%clk 0:01:28.3]} 26. Rc1 {[%clk 0:01:11.7]} 26...
Nd5 {[%clk 0:01:27.5]} 27. Bg8 {[%clk 0:00:57.5]} 27... Nge7 {[%clk 0:01:23.5]}
28. Bxh7 {[%clk 0:00:36.7]} 28... Kf7 {[%clk 0:01:06.6]} 29. e6+ {[%clk
0:00:21.3]} 29... Kxe6 {[%clk 0:01:02.4]} 30. g4 {[%clk 0:00:20.3]} 30... g6
{[%clk 0:00:59.8]} 31. gxf5+ {[%clk 0:00:20.5]} 31... Bxf5 {[%clk 0:00:58.4]}
32. Kf2 {[%clk 0:00:19.7]} 32... Rh8 {[%clk 0:00:57.2]} 0-1

[Event "*** MasterClass Titled Tuesday Blitz"]
[Site "Chess.com"]
[Date "2017.11.07"]
[Round "2"]
[White "Tobi-Wan-Kenobi"]
[Black "NateSolon"]
[Result "1-0"]
[WhiteElo "2468"]
[BlackElo "2373"]
[TimeControl "180+2"]
[EndTime "14:29:03 PST"]
[Termination "Tobi-Wan-Kenobi won by resignation"]

1. d4 {[%clk 0:03:01.9]} 1... d5 {[%clk 0:03:00.4]} 2. c4 {[%clk 0:03:02.4]}
2... dxc4 {[%clk 0:03:01.6]} 3. e3 {[%clk 0:03:02.4]} 3... e5 {[%clk 0:03:02.2]}
4. Bxc4 {[%clk 0:03:03]} 4... exd4 {[%clk 0:03:03.4]} 5. exd4 {[%clk 0:03:04.9]}
5... Bd6 {[%clk 0:03:04.4]} 6. Nf3 {[%clk 0:03:06.2]} 6... Nf6 {[%clk
0:03:05.6]} 7. Qe2+ {[%clk 0:03:06]} 7... Qe7 {[%clk 0:03:06.6]} 8. Qxe7+ {[%clk
0:03:06.5]} 8... Bxe7 {[%clk 0:03:08]} 9. O-O {[%clk 0:03:08.4]} 9... Nbd7
{[%clk 0:03:09.1]} 10. Re1 {[%clk 0:03:04.2]} 10... Nb6 {[%clk 0:03:08.7]} 11.
Bb3 {[%clk 0:03:05.2]} 11... Nfd5 {[%clk 0:03:09.8]} 12. Nc3 {[%clk 0:03:03.9]}
12... c6 {[%clk 0:03:07.1]} 13. a4 {[%clk 0:02:56.6]} 13... a5 {[%clk
0:03:07.6]} 14. Nxd5 {[%clk 0:02:57.4]} 14... Nxd5 {[%clk 0:03:08.1]} 15. Bxd5
{[%clk 0:02:46.4]} 15... cxd5 {[%clk 0:03:09.1]} 16. Ra3 {[%clk 0:02:47.6]}
16... Be6 {[%clk 0:03:01.1]} 17. Rb3 {[%clk 0:02:47]} 17... O-O {[%clk
0:02:16.5]} 18. Rxb7 {[%clk 0:02:45.8]} 18... Bb4 {[%clk 0:02:17.3]} 19. Bd2
{[%clk 0:02:45.7]} 19... Bxd2 {[%clk 0:02:18.5]} 20. Nxd2 {[%clk 0:02:47.5]}
20... Rab8 {[%clk 0:02:20.4]} 21. Rxb8 {[%clk 0:02:28.1]} 21... Rxb8 {[%clk
0:02:22.3]} 22. b3 {[%clk 0:02:29.2]} 22... Rb4 {[%clk 0:02:22.1]} 23. Kf1
{[%clk 0:02:12.4]} 23... Rxd4 {[%clk 0:02:22]} 24. Ke2 {[%clk 0:02:11.3]} 24...
Rb4 {[%clk 0:02:17.6]} 25. Rc1 {[%clk 0:02:05.2]} 25... g6 {[%clk 0:02:00.9]}
26. Rc5 {[%clk 0:02:03.1]} 26... d4 {[%clk 0:02:02.1]} 27. Rb5 {[%clk
0:01:36.6]} 27... Kf8 {[%clk 0:01:36.1]} 28. Rxb4 {[%clk 0:01:33.3]} 28... axb4
{[%clk 0:01:36.9]} 29. Kd3 {[%clk 0:01:34.7]} 29... Ke7 {[%clk 0:01:20.5]} 30.
Kxd4 {[%clk 0:01:33.6]} 30... Kd6 {[%clk 0:01:21.6]} 31. Nc4+ {[%clk 0:01:31]}
31... Kc6 {[%clk 0:01:19]} 32. g3 {[%clk 0:01:31.5]} 32... h5 {[%clk 0:01:15.2]}
33. h4 {[%clk 0:01:30.2]} 33... Bd5 {[%clk 0:01:05.8]} 34. Na5+ {[%clk 0:01:19]}
34... Kd6 {[%clk 0:01:06]} 35. Nc4+ {[%clk 0:01:19.3]} 35... Kc6 {[%clk
0:01:07.2]} 36. f4 {[%clk 0:01:17.8]} 36... Be6 {[%clk 0:01:06.5]} 37. Nd2
{[%clk 0:01:09.8]} 37... Kd6 {[%clk 0:01:01.4]} 38. Ne4+ {[%clk 0:01:01.1]}
38... Kc6 {[%clk 0:01:02.6]} 39. Nc5 {[%clk 0:01:00.8]} 39... Bd5 {[%clk
0:00:53.5]} 40. a5 {[%clk 0:01:00]} 40... Bf3 {[%clk 0:00:30.8]} 41. Kc4 {[%clk
0:00:58.6]} 1-0

[Event "*** MasterClass Titled Tuesday Blitz"]
[Site "Chess.com"]
[Date "2017.11.07"]
[Round "2"]
[White "matej2221"]
[Black "ChadBiryani"]
[Result "1-0"]
[WhiteElo "2030"]
[BlackElo "2182"]
[TimeControl "180+2"]
[EndTime "14:29:10 PST"]
[Termination "matej2221 won on time"]

1. e4 {[%clk 0:03:01.9]} 1... d5 {[%clk 0:02:59.6]} 2. exd5 {[%clk 0:03:02]}
2... Qxd5 {[%clk 0:03:01.5]} 3. Nc3 {[%clk 0:03:02.4]} 3... Qd6 {[%clk 0:03:02]}
4. d4 {[%clk 0:03:01.1]} 4... Nf6 {[%clk 0:03:02.9]} 5. Nge2 {[%clk 0:03:02.3]}
5... g6 {[%clk 0:02:59.5]} 6. Bf4 {[%clk 0:03:02.6]} 6... Qd8 {[%clk 0:03:00]}
7. Qd2 {[%clk 0:03:04]} 7... a6 {[%clk 0:02:59]} 8. O-O-O {[%clk 0:03:04.8]}
8... h5 {[%clk 0:02:57.1]} 9. d5 {[%clk 0:03:03.4]} 9... b5 {[%clk 0:02:55.8]}
10. Nd4 {[%clk 0:02:51.3]} 10... Bb7 {[%clk 0:02:51.8]} 11. Ncxb5 {[%clk
0:02:28]} 11... axb5 {[%clk 0:02:45.9]} 12. Bxb5+ {[%clk 0:02:29.9]} 12... Nbd7
{[%clk 0:02:37.4]} 13. Ne6 {[%clk 0:02:31.1]} 13... fxe6 {[%clk 0:02:31.3]} 14.
dxe6 {[%clk 0:02:32.3]} 14... c6 {[%clk 0:02:29.7]} 15. Bd3 {[%clk 0:02:24.5]}
15... Rg8 {[%clk 0:02:20.1]} 16. exd7+ {[%clk 0:02:06]} 16... Qxd7 {[%clk
0:02:10.1]} 17. Be5 {[%clk 0:02:03.1]} 17... Qe6 {[%clk 0:01:54.8]} 18. Rhe1
{[%clk 0:01:55.6]} 18... Qxa2 {[%clk 0:01:49.5]} 19. Qg5 {[%clk 0:01:41.3]}
19... Kf7 {[%clk 0:00:57.9]} 20. Bxf6 {[%clk 0:01:12.7]} 20... Qa1+ {[%clk
0:00:09.6]} 21. Kd2 {[%clk 0:01:12.4]} 21... Qa5+ {[%clk 0:00:11.2]} 22. Qxa5
{[%clk 0:01:10.9]} 22... Rxa5 {[%clk 0:00:13.1]} 23. Bc4+ {[%clk 0:00:54.5]}
23... Kxf6 {[%clk 0:00:11]} 24. Bxg8 {[%clk 0:00:55.2]} 24... Bh6+ {[%clk
0:00:10]} 25. Ke2 {[%clk 0:00:45.5]} 25... Ba6+ {[%clk 0:00:04.1]} 26. c4 {[%clk
0:00:46.2]} 26... e6 {[%clk 0:00:05.5]} 27. b3 {[%clk 0:00:41.4]} 27... Ra2+
{[%clk 0:00:03.6]} 28. Kf1 {[%clk 0:00:41.9]} 28... Rb2 {[%clk 0:00:05.2]} 29.
Rxe6+ {[%clk 0:00:41.8]} 29... Kg7 {[%clk 0:00:05.6]} 30. Rxc6 {[%clk
0:00:40.6]} 30... Kxg8 {[%clk 0:00:04.2]} 31. Rxg6+ {[%clk 0:00:35.1]} 1-0

[Event "*** MasterClass Titled Tuesday Blitz"]
[Site "Chess.com"]
[Date "2017.11.07"]
[Round "2"]
[White "asms9699"]
[Black "Cherone"]
[Result "0-1"]
[WhiteElo "2428"]
[BlackElo "2474"]
[TimeControl "180+2"]
[EndTime "14:29:21 PST"]
[Termination "Cherone won by resignation"]

1. c4 {[%clk 0:03:01.9]} 1... e5 {[%clk 0:03:00.4]} 2. g3 {[%clk 0:03:02.7]}
2... Nf6 {[%clk 0:03:00.1]} 3. Bg2 {[%clk 0:03:03.9]} 3... c6 {[%clk 0:03:01.2]}
4. d4 {[%clk 0:03:04.6]} 4... e4 {[%clk 0:03:02.3]} 5. Nc3 {[%clk 0:03:04.7]}
5... Bb4 {[%clk 0:03:03.2]} 6. Bg5 {[%clk 0:03:00.5]} 6... Bxc3+ {[%clk
0:03:03.7]} 7. bxc3 {[%clk 0:03:01]} 7... d5 {[%clk 0:03:05.2]} 8. Nh3 {[%clk
0:03:00]} 8... Nbd7 {[%clk 0:03:06]} 9. O-O {[%clk 0:02:55.4]} 9... O-O {[%clk
0:03:05.8]} 10. cxd5 {[%clk 0:02:53.2]} 10... cxd5 {[%clk 0:03:06.4]} 11. c4
{[%clk 0:02:54.5]} 11... h6 {[%clk 0:03:05.7]} 12. Bxf6 {[%clk 0:02:51.3]} 12...
Nxf6 {[%clk 0:03:07.6]} 13. cxd5 {[%clk 0:02:52.8]} 13... Qxd5 {[%clk
0:03:02.7]} 14. Nf4 {[%clk 0:02:53.2]} 14... Qd6 {[%clk 0:03:02.4]} 15. e3
{[%clk 0:02:51.7]} 15... Bg4 {[%clk 0:03:01.8]} 16. Ne2 {[%clk 0:02:30.3]} 16...
Qe6 {[%clk 0:02:45.7]} 17. Qd2 {[%clk 0:02:25.5]} 17... Bf3 {[%clk 0:02:44.4]}
18. Nf4 {[%clk 0:02:20.1]} 18... Qf5 {[%clk 0:02:44.9]} 19. Bxf3 {[%clk
0:02:12.1]} 19... exf3 {[%clk 0:02:44.6]} 20. Qd3 {[%clk 0:02:02.6]} 20... Ne4
{[%clk 0:02:42.7]} 21. h3 {[%clk 0:02:00.9]} 21... Rfe8 {[%clk 0:02:27.9]} 22.
Rab1 {[%clk 0:01:50.8]} 22... Qd7 {[%clk 0:02:20.6]} 23. Qb5 {[%clk 0:01:40.9]}
23... Re7 {[%clk 0:02:07.9]} 24. Rfc1 {[%clk 0:00:57.6]} 24... Qd6 {[%clk
0:01:40.2]} 25. Qh5 {[%clk 0:00:36.8]} 25... g5 {[%clk 0:01:29.3]} 26. Nd3
{[%clk 0:00:33.8]} 26... Nxg3 {[%clk 0:01:21.1]} 27. Qxf3 {[%clk 0:00:34.4]}
27... Ne4 {[%clk 0:01:22.5]} 28. Nc5 {[%clk 0:00:30.8]} 28... Nd2 {[%clk
0:01:19.8]} 29. Qf5 {[%clk 0:00:25.3]} 29... Nxb1 {[%clk 0:01:19.3]} 30. Rxb1
{[%clk 0:00:27.2]} 30... b6 {[%clk 0:01:18.6]} 31. Ne4 {[%clk 0:00:21.1]} 31...
Qe6 {[%clk 0:01:08.4]} 32. Nf6+ {[%clk 0:00:17.7]} 32... Kf8 {[%clk 0:01:04.5]}
33. Nh7+ {[%clk 0:00:18.3]} 33... Kg7 {[%clk 0:01:02.4]} 34. Qf3 {[%clk
0:00:19.1]} 34... Rd8 {[%clk 0:00:55.3]} 35. Rc1 {[%clk 0:00:18.7]} 35... Kxh7
{[%clk 0:00:54.4]} 36. Rc6 {[%clk 0:00:19.3]} 36... Rd6 {[%clk 0:00:53.8]} 37.
Rc3 {[%clk 0:00:16.5]} 37... Kg7 {[%clk 0:00:54.4]} 38. h4 {[%clk 0:00:16.5]}
38... Qe4 {[%clk 0:00:54]} 39. Qe2 {[%clk 0:00:14.7]} 39... gxh4 {[%clk
0:00:54.4]} 40. Rc8 {[%clk 0:00:13.3]} 40... Rg6+ {[%clk 0:00:55.3]} 0-1